bitfinex/quotes_ETHUSD_20250504
["timestamp","ask_amount","ask_price","bid_price","bid_amount"]
[1746357952964,5.43959477,1838.4,1838.1,0.8185]
[1746357953160,0.10289826,1838.2,1838.1,0.8185]
[1746357953364,5.43959477,1838.4,1838.1,0.8185]
[1746357953546,0.10289826,1838.2,1838.1,0.8185]
[1746357953750,5.43959477,1838.4,1838.1,0.8185]
[1746357953957,0.10289826,1838.2,1838.1,0.8185]
[1746357954162,5.43983494,1838.3,1838.1,0.8185]
[1746357954362,0.10289826,1838.2,1838.1,0.8185]
[1746357954573,0.10289826,1838.2,1837.9,5.3303]
[1746357954768,5.54311428,1838.2,1837.9,1.86544422]
[1746357955082,0.10490765,1838.1,1837.9,0.7883]
[1746357955277,5.44021602,1838.2,1837.9,0.7883]
[1746357955447,0.10490765,1838.1,1837.9,0.7883]
[1746357955648,5.44021602,1838.2,1837.9,0.7883]
[1746357955879,0.10490765,1838.1,1837.9,0.7883]
[1746357956077,5.44021602,1838.2,1837.9,0.7883]
[1746357956266,0.10490765,1838.1,1837.9,0.7883]
[1746357956453,5.44109351,1837.9,1837.6,0.7883]
[1746357956662,0.10227419,1837.8,1837.6,0.7883]
[1746357956980,5.44109351,1837.9,1837.6,0.842713]
[1746357957578,5.44109351,1837.9,1837.6,0.7883]
[1746357957785,5.44141733,1837.8,1837.6,0.7883]
[1746357957961,0.10235469,1837.8,1837.6,0.7883]
[1746357958564,5.54366361,1837.8,1837.6,0.7883]
[1746357959049,5.44130892,1837.8,1837.5,17.90859333]
[1746357959656,3.1131,1838.0,1837.5,17.90859333]
[1746357959855,0.10206903,1837.9,1837.5,17.90859333]
[1746357960184,0.10206903,1837.9,1837.5,23.35071454]
[1746357960381,0.10206903,1837.9,1837.6,2.33507145]
[1746357960562,0.10206903,1837.9,1837.5,20.73042121]
[1746357962155,0.10206903,1837.9,1837.5,15.2883]
[1746357962586,5.44119984,1837.9,1837.5,15.2883]
[1746357963167,5.44135628,1837.8,1837.5,15.2883]
[1746357964591,5.44119984,1837.9,1837.5,15.2883]
[1746357964791,3.0,1837.9,1837.5,22.80334799]
[1746357965087,8.44102396,1837.9,1837.5,17.36135747]
[1746357965488,8.44102396,1837.9,1837.5,15.2883]
[1746357965992,5.4416609,1837.7,1837.5,15.2883]
[1746357966189,5.4416609,1837.7,1837.5,14.5]
[1746357967777,5.55487603,1837.7,1837.5,14.5]
[1746357968095,5.44188071,1837.6,1837.5,14.5]
[1746357969192,5.44228798,1837.5,1837.3,0.7573]
[1746357969388,5.44228798,1837.5,1837.1,0.81172502]
[1746357969389,5.44247568,1837.4,1837.1,0.81172502]
[1746357969600,5.44247568,1837.4,1837.1,1.38281902]
[1746357969782,5.44247568,1837.4,1837.2,14.5]
[1746357971484,5.44236863,1837.5,1837.2,14.5]
[1746357972406,5.44247457,1837.4,1837.2,14.5]
[1746357972904,5.44234449,1837.5,1837.2,16.0882819]
[1746357973493,5.44234449,1837.5,1837.2,14.5]
[1746357975102,0.3993543,1837.6,1837.2,14.5]
[1746357975276,5.44236874,1837.5,1837.2,14.5]
[1746357975479,8.44204258,1837.6,1837.2,19.94304179]
[1746357975908,8.44204258,1837.6,1837.3,0.8039]
[1746357976609,8.84722021,1837.6,1837.4,14.5]
[1746357977505,8.44204258,1837.6,1837.4,14.5]
[1746357980507,3.0,1837.6,1837.4,14.5]
[1746357980708,1.6800901,1837.7,1837.5,6.23675804]
[1746357980913,1.6800901,1837.7,1837.5,6.29117362]
[1746357981213,1.6800901,1837.7,1837.5,6.29105161]
[1746357982081,1.6800901,1837.7,1837.5,5.49635161]
[1746357982303,1.6800901,1837.7,1837.6,1.34433516]
[1746357982501,5.44115675,1837.9,1837.6,1.34433516]
[1746357982895,9.98188079,1838.0,1837.6,6.78610326]
[1746357983615,5.44088079,1838.0,1837.6,6.78610326]
[1746357984415,5.44088079,1838.0,1837.7,14.5]
[1746357985987,5.44108974,1837.9,1837.7,14.5]
[1746357992128,5.44128849,1837.8,1837.7,14.5]
[1746357995728,6.54083631,1837.8,1837.7,14.5]
[1746357996432,5.44128849,1837.8,1837.7,14.5]
[1746357996931,5.44169629,1837.7,1837.4,0.8276]
[1746357997309,10.88294416,1837.8,1837.5,14.5]
[1746357997498,5.44141303,1837.8,1837.5,14.5]
[1746357998610,5.44133951,1837.8,1837.5,14.5]
[1746357998798,5.44133951,1837.8,1837.5,16.57700167]
[1746357998998,2.20379149,1838.1,1837.6,6.32376765]
[1746357999330,10.1205983,1838.1,1837.7,6.23377138]
[1746357999505,10.1205983,1838.1,1837.7,6.86259024]
[1746357999704,10.1205983,1838.1,1837.8,14.5]
[1746358000515,15.56129056,1838.1,1837.8,14.5]
[1746358000714,5.44071255,1838.0,1837.8,14.5]
[1746358002634,10.12068002,1838.1,1837.8,14.5]
[1746358004821,5.4407096,1838.0,1837.8,14.5]
[1746358005158,10.12064535,1838.1,1837.8,16.45674805]
[1746358005856,15.56131915,1838.1,1837.8,16.45674805]
[1746358006350,10.12064535,1838.1,1837.8,16.45674805]
[1746358006952,15.56130658,1838.1,1837.8,16.45674805]
[1746358007250,10.12064535,1838.1,1837.8,16.45674805]
[1746358008657,15.56130783,1838.1,1837.8,16.45674805]
[1746358009318,10.12064535,1838.1,1837.8,16.45674805]
[1746358009639,5.44083004,1838.0,1837.8,16.45674805]
[1746358009838,5.44083004,1838.0,1837.8,14.5]
[1746358010040,5.44070553,1838.0,1837.8,14.5]
[1746358011019,4.6800901,1838.1,1837.8,14.5]
[1746358011020,10.12068159,1838.1,1837.8,14.5]
[1746358012758,15.56134876,1838.1,1837.8,14.5]
[1746358013252,15.56137379,1838.1,1837.8,14.5]
[1746358014250,5.44069924,1838.0,1837.8,14.5]
[1746358016327,10.12060379,1838.1,1837.8,14.5]
[1746358016756,15.5612443,1838.1,1837.8,14.5]
[1746358017356,5.44073523,1838.0,1837.8,14.5]
[1746358017974,7.12067908,1838.1,1837.8,16.09211189]
[1746358019547,12.56133254,1838.1,1837.8,16.09211189]
[1746358019859,7.12067908,1838.1,1837.8,16.09211189]
[1746358020859,12.56131866,1838.1,1837.8,16.09211189]
[1746358021357,7.12067908,1838.1,1837.8,16.09211189]
[1746358021748,1.6800901,1838.1,1837.8,21.53336443]
[1746358022051,1.6800901,1838.1,1837.9,2.15333644]
[1746358022425,1.6800901,1838.1,1837.8,7.08777061]
[1746358022629,1.6800901,1838.1,1837.9,14.5]
[1746358023145,7.12049882,1838.1,1837.9,14.5]
[1746358024364,1.6800901,1838.1,1837.9,14.5]
[1746358025263,7.12055587,1838.1,1837.9,14.5]
[1746358026655,1.6800901,1838.1,1837.9,14.5]
[1746358026859,1.6800901,1838.1,1837.9,17.39520459]
[1746358027365,5.84568612,1838.2,1837.9,17.39520459]
[1746358027539,5.84568612,1838.2,1837.9,15.2993]
[1746358027739,5.84568612,1838.2,1837.9,18.94566162]
[1746358030972,5.44040425,1838.1,1837.9,18.14636162]
[1746358034271,5.44040425,1838.1,1837.9,3.64636162]
[1746358034977,5.44040425,1838.1,1838.0,14.5]
[1746358038479,5.44040425,1838.1,1837.8,3.64636162]
[1746358038656,5.44040425,1838.1,1837.9,0.7631]
[1746358038857,5.44040425,1838.1,1838.0,14.5]
[1746358052691,7.11991563,1838.3,1838.0,15.2939]
[1746358053468,7.11991563,1838.3,1838.0,21.85951448]
[1746358053667,5.44016978,1838.2,1838.0,21.85951448]
[1746358053888,5.44040041,1838.1,1838.0,21.06561448]
[1746358054485,5.55326978,1838.2,1838.0,21.06561448]
[1746358055104,5.95362695,1838.2,1838.0,21.06561448]
[1746358055598,0.40035717,1838.2,1838.0,21.85951448]
[1746358055797,7.12006434,1838.3,1838.0,21.85951448]
[1746358055962,1.6800901,1838.3,1838.0,30.03013675]
[1746358057070,5.43929279,1838.5,1838.0,30.03005698]
[1746358057272,7.11920092,1838.6,1838.2,6.23385821]
[1746358058198,7.11920092,1838.6,1838.3,14.5]
[1746358058598,4.6800901,1838.6,1838.3,16.57338582]
[1746358058899,4.6800901,1838.6,1838.4,0.7939]
[1746358059116,3.0,1838.6,1838.4,0.7939]
[1746358059603,3.0,1838.6,1838.5,14.5]
[1746358059801,5.55156751,1838.8,1838.5,14.5]
[1746358059802,5.55149597,1838.8,1838.5,14.5]
[1746358059995,3.0,1838.7,1838.5,16.57332342]
[1746358060700,3.0,1838.7,1838.5,2.07332342]
[1746358061010,3.0,1838.7,1838.4,6.28762155]
[1746358061386,3.0,1838.7,1838.4,6.28762159]
[1746358061587,3.0,1838.7,1838.5,14.5]
[1746358061887,0.40686739,1838.8,1838.5,14.5]
[1746358062205,15.55663186,1838.9,1838.5,14.5]
[1746358062409,3.0,1838.7,1838.5,14.5]
[1746358062712,3.0,1838.7,1838.5,16.57332088]
[1746358064810,5.43844126,1838.8,1838.5,16.57332088]
[1746358065209,10.8770146,1838.8,1838.5,16.57332088]
[1746358065616,11.29299981,1838.8,1838.5,16.57332088]
[1746358065905,5.85442647,1838.8,1838.5,16.57332088]
[1746358066310,5.43866747,1838.7,1838.5,16.57332088]
[1746358067010,5.43892091,1838.6,1838.5,14.5]
[1746358073618,5.43892091,1838.6,1838.2,9.84585299]
[1746358073813,10.87809189,1838.6,1838.2,9.84585299]
[1746358074128,5.43892091,1838.6,1838.3,14.5]
[1746358079305,5.43931801,1838.5,1838.3,14.5]
[1746358080629,5.4391215,1838.6,1838.3,14.5]
[1746358081124,5.4392914,1838.5,1838.3,14.5]
[1746358083426,5.43951261,1838.4,1838.3,14.5]
[1746358087005,5.43951261,1838.4,1838.0,4.39656162]
[1746358087006,5.44040041,1838.1,1838.0,3.64636162]
[1746358087331,5.55350041,1838.1,1838.0,3.64636162]
[1746358087630,5.55350041,1838.1,1838.0,18.14636162]
[1746358090418,5.55350041,1838.1,1838.0,3.64636162]
[1746358090625,6.77700883,1838.1,1838.0,3.64636162]
[1746358090831,9.77700883,1838.1,1838.0,3.64636162]
[1746358091414,5.4406964,1838.0,1837.9,3.64636162]
[1746358092734,5.5537964,1838.0,1837.9,3.64636162]
[1746358093714,8.85811515,1838.0,1837.9,3.64636162]
[1746358095540,5.85811515,1838.0,1837.9,3.64636162]
[1746358095936,5.85811515,1838.0,1837.8,0.7865]
[1746358095937,5.44099243,1837.9,1837.8,0.7865]
[1746358096528,5.44099243,1837.9,1837.8,15.2865]
[1746358098725,5.44099243,1837.9,1837.8,14.5]
[1746358099146,5.55409243,1837.9,1837.8,14.5]
[1746358099339,8.55409243,1837.9,1837.8,14.5]
[1746358100856,9.99531319,1837.9,1837.8,14.5]
[1746358101156,9.99531319,1837.9,1837.4,3.64636162]
[1746358101157,5.44217687,1837.5,1837.4,3.64636162]
[1746358101529,5.44217687,1837.5,1837.4,18.14636162]
[1746358104520,5.44217687,1837.5,1837.4,3.64636162]
[1746358104853,5.44217687,1837.5,1837.2,0.8186]
[1746358104854,10.88463436,1837.5,1837.2,4.46496162]
[1746358105016,5.44217687,1837.5,1837.4,14.5]
[1746358106356,5.85833894,1837.5,1837.4,14.5]
[1746358107254,6.72846127,1837.5,1837.4,14.5]
[1746358107462,5.44276928,1837.3,1837.2,3.64636162]
[1746358107960,5.44276928,1837.3,1837.2,18.14636162]
[1746358109335,5.44276928,1837.3,1837.2,14.5]
[1746358110959,5.44276928,1837.3,1837.0,0.8271]
[1746358111365,5.44276928,1837.3,1837.0,0.88153063]
[1746358111567,5.44276928,1837.3,1837.1,14.5]
[1746358113060,5.44261781,1837.4,1837.1,14.5]
[1746358113230,5.44281646,1837.3,1837.1,14.5]
[1746358115264,5.4426135,1837.4,1837.1,14.5]
[1746358116330,10.88533994,1837.4,1837.1,14.5]
[1746358116829,5.44296,1837.3,1837.1,14.5]
[1746358118279,5.44306553,1837.2,1837.1,14.5]
[1746358124684,10.8863846,1837.2,1836.8,0.8113]
[1746358124980,10.8863846,1837.2,1836.8,0.86573682]
[1746358125278,10.8863846,1837.2,1836.9,14.5]
[1746358125879,5.44306553,1837.2,1836.9,14.5]
[1746358126192,10.88639065,1837.2,1836.9,14.5]
[1746358126365,5.44337734,1837.1,1836.9,14.5]
[1746358129494,5.44365813,1837.0,1836.9,14.5]
[1746358130191,5.44354771,1837.1,1836.9,14.5]
[1746358135806,10.88716205,1837.1,1836.9,14.5]
[1746358135965,5.44354771,1837.1,1836.9,14.5]
[1746358138381,5.44336182,1837.1,1836.9,14.5]
[1746358139768,5.44365813,1837.0,1836.9,14.5]
[1746358142898,5.44347873,1837.1,1836.9,14.5]
[1746358144001,5.44306553,1837.2,1836.9,14.5]
[1746358144221,5.44365813,1837.0,1836.9,14.5]
[1746358144412,5.44358173,1837.1,1836.9,14.5]
[1746358145019,5.44365813,1837.0,1836.9,14.5]
[1746358148079,5.44395448,1836.9,1836.8,3.64636162]
[1746358148608,5.44395448,1836.9,1836.8,18.14636162]
[1746358151020,6.53271574,1836.9,1836.8,18.14636162]
[1746358151520,6.53271574,1836.9,1836.8,3.64636162]
[1746358152112,6.53271574,1836.9,1836.8,18.14636162]
[1746358152611,6.64581574,1836.9,1836.8,18.14636162]
[1746358152924,11.32590584,1836.9,1836.8,3.64636162]
[1746358153311,11.32590584,1836.9,1836.8,18.14636162]
[1746358154035,11.32590584,1836.9,1836.8,3.64636162]
[1746358154205,11.7376402,1836.9,1836.8,3.64636162]
[1746358155129,11.6245402,1836.9,1836.8,3.64636162]
[1746358155630,11.7376402,1836.9,1836.8,3.64636162]
[1746358155836,5.44425087,1836.8,1836.7,3.64636162]
[1746358156126,6.6668327,1836.8,1836.7,3.64636162]
[1746358158099,6.6668327,1836.8,1836.7,18.14636162]
[1746358158634,5.44425087,1836.8,1836.7,18.14636162]
[1746358159629,10.53589892,1836.9,1836.7,18.14636162]
[1746358159933,10.53589892,1836.9,1836.7,18.94196162]
[1746358160334,5.44425087,1836.8,1836.7,18.94196162]
[1746358160635,5.44425087,1836.8,1836.7,15.2956]
[1746358162736,10.53589892,1836.9,1836.7,15.2956]
[1746358163424,10.53589892,1836.9,1836.7,0.7956]
[1746358163625,15.98014245,1836.9,1836.7,0.7956]
[1746358164027,10.53589892,1836.9,1836.8,14.5]
[1746358164539,10.53589892,1836.9,1836.8,15.0]
[1746358190235,12.24696592,1836.9,1836.8,15.0]
[1746358191333,12.24696592,1836.9,1836.8,0.5]
[1746358191527,12.13386592,1836.9,1836.8,0.5]
[1746358195560,12.13386592,1836.9,1836.8,15.0]
[1746358198128,12.24696592,1836.9,1836.8,15.0]
[1746358198359,12.24696592,1836.9,1836.8,0.5]
[1746358198655,12.13386592,1836.9,1836.8,0.5]
[1746358198856,12.13386592,1836.9,1836.8,15.0]
[1746358198857,10.53589892,1836.9,1836.8,15.0]
[1746358199064,10.53589892,1836.9,1836.8,14.5]
[1746358200275,1.6800901,1837.2,1836.9,0.8156]
[1746358200596,5.44357552,1837.1,1836.9,0.8156]
[1746358200873,5.44365813,1837.0,1836.9,0.8156]
[1746358201257,10.88714358,1837.1,1836.9,0.8156]
[1746358201434,5.44365813,1837.0,1836.9,0.8156]
[1746358201766,0.40945628,1837.0,1836.9,0.8156]
[1746358201974,5.44351993,1837.1,1836.9,0.8156]
[1746358202646,5.44365813,1837.0,1836.9,0.8156]
[1746358203128,7.12321287,1837.2,1836.9,0.8156]
[1746358203331,9.97266558,1837.4,1837.0,5.44347382]
[1746358203567,10.39038957,1837.4,1837.1,0.8156]
[1746358205770,10.39038957,1837.4,1837.1,0.87002716]
[1746358205981,0.41772399,1837.4,1837.2,0.05442716]
[1746358206269,5.44236673,1837.5,1837.3,0.7977]
[1746358206575,5.44236673,1837.5,1837.4,14.5]
[1746358208772,5.84429274,1837.5,1837.4,14.5]
[1746358219053,5.44279383,1837.3,1837.1,0.7633]
[1746358219253,5.44279383,1837.3,1837.1,1.20426616]
[1746358219495,5.44279383,1837.3,1837.2,14.5]
[1746358231107,5.44271935,1837.4,1837.2,14.5]
[1746358231674,5.44276928,1837.3,1837.2,14.5]
[1746358235176,8.44276928,1837.3,1837.2,14.5]
[1746358235377,10.88711036,1837.1,1836.9,3.64636162]
[1746358235597,5.44365813,1837.0,1836.9,3.64636162]
[1746358235822,5.44365813,1837.0,1836.9,18.14636162]
[1746358235999,5.44353906,1837.1,1836.9,18.14636162]
[1746358237815,0.51502601,1837.5,1837.0,0.7548]
[1746358238019,5.84425682,1837.5,1837.1,5.44334258]
[1746358238182,5.84425682,1837.5,1837.2,1.35355789]
[1746358238383,5.84425682,1837.5,1837.3,14.5]
[1746358240316,0.40192601,1837.5,1837.3,14.5]
[1746358240508,11.64911517,1837.6,1837.3,14.5]
[1746358240688,17.09125564,1837.6,1837.3,14.5]
[1746358240889,5.44224402,1837.5,1837.3,14.5]
[1746358241597,12.05904603,1837.6,1837.3,14.5]
[1746358242506,12.05904603,1837.6,1837.3,16.07991343]
[1746358242810,5.85201177,1837.6,1837.3,16.07991343]
[1746358242979,0.40993086,1837.6,1837.3,21.5226453]
[1746358243184,0.40993086,1837.6,1837.4,0.80921877]
[1746358243383,8.44161194,1837.7,1837.4,3.04240518]
[1746358243628,8.44161194,1837.7,1837.4,0.7548]
[1746358243827,8.44161194,1837.7,1837.5,14.5]
[1746358244931,8.84397271,1837.7,1837.5,14.5]
[1746358245805,3.40236077,1837.7,1837.5,14.5]
[1746358246952,5.44121319,1837.9,1837.5,19.94213308]
[1746358247134,5.44121319,1837.9,1837.6,2.80921331]
[1746358247449,10.88247928,1837.9,1837.6,2.80921331]
[1746358247613,5.44121319,1837.9,1837.6,2.80921331]
[1746358247947,5.44121319,1837.9,1837.6,2.86362691]
[1746358248113,5.44121319,1837.9,1837.7,0.28636269]
[1746358248303,5.85461608,1837.9,1837.7,0.28636269]
[1746358250447,5.44128849,1837.8,1837.7,0.28636269]
[1746358250644,5.44128849,1837.8,1837.6,0.815]
[1746358250847,5.44128849,1837.8,1837.7,14.5]
[1746358251622,5.85458236,1837.9,1837.7,14.5]
[1746358251825,5.44117947,1837.9,1837.7,14.5]
[1746358252846,5.8467275,1837.9,1837.7,14.5]
[1746358253309,11.28796813,1837.9,1837.7,14.5]
[1746358253508,5.8467275,1837.9,1837.7,14.5]
[1746358261723,5.44128849,1837.8,1837.7,14.5]
[1746358265461,5.44212501,1837.6,1837.4,4.41746162]
[1746358265826,5.44217687,1837.5,1837.4,4.41746162]
[1746358266065,5.44217687,1837.5,1837.4,18.91746162]
[1746358266725,5.44217687,1837.5,1837.4,18.14636162]
[1746358266932,8.44217687,1837.5,1837.4,18.14636162]
[1746358267139,9.72650836,1837.5,1837.4,18.14636162]
[1746358268060,11.40659846,1837.5,1837.4,3.64636162]
[1746358270756,11.40659846,1837.5,1837.0,14.5]
[1746358270757,5.44335773,1837.2,1837.0,14.5]
[1746358271170,5.44336182,1837.1,1837.0,14.5]
[1746358272357,5.84706632,1837.1,1837.0,14.5]
[1746358276608,8.84706632,1837.1,1837.0,14.5]
[1746358278622,5.44395448,1836.9,1836.8,0.7799]
[1746358278983,5.44395448,1836.9,1836.8,15.2799]
[1746358279185,5.44395448,1836.9,1836.8,17.17252616]
[1746358283414,5.44378619,1837.0,1836.8,17.17252616]
[1746358283709,5.44378619,1837.0,1836.8,2.67252616]
[1746358283906,5.44378619,1837.0,1836.8,0.7799]
[1746358284219,5.44395448,1836.9,1836.8,0.7799]
[1746358284421,5.44378619,1837.0,1836.8,0.7799]
[1746358284720,5.44395448,1836.9,1836.8,0.7799]
[1746358285111,5.44395448,1836.9,1836.8,15.2799]
[1746358285937,5.44395448,1836.9,1836.8,14.5]
[1746358291417,8.44395448,1836.9,1836.8,14.5]
[1746358291842,5.44454728,1836.7,1836.6,0.7829]
[1746358292147,5.44484373,1836.6,1836.5,4.44246162]
[1746358292313,5.44484373,1836.6,1836.5,18.14636162]
[1746358293318,5.44468612,1836.7,1836.5,14.5]
[1746358294249,2.0837946,1837.1,1836.6,5.49911674]
[1746358294451,10.52731521,1837.1,1836.8,0.8137]
[1746358294651,10.52731521,1837.1,1836.8,0.86813602]
[1746358295830,10.52731521,1837.1,1836.9,14.5]
[1746358297119,15.97092731,1837.1,1836.9,14.5]
[1746358297320,15.97092301,1837.1,1836.9,14.5]
[1746358297520,10.52731521,1837.1,1836.9,14.5]
[1746358299354,7.527187,1837.1,1836.9,14.5]
[1746358300292,3.8658187,1837.0,1836.3,0.8137]
[1746358300583,5.44499695,1836.6,1836.3,0.8137]
[1746358300784,5.44499695,1836.6,1836.4,14.5]
[1746358301144,5.84610519,1836.6,1836.4,14.5]
[1746358301348,5.84610519,1836.6,1836.5,3.64636162]
[1746358303069,8.84610519,1836.6,1836.5,3.64636162]
[1746358303263,9.97517755,1836.6,1836.5,3.64636162]
[1746358303570,3.40110824,1836.6,1836.5,3.64636162]
[1746358303976,8.84595197,1836.6,1836.5,3.64636162]
[1746358304345,8.84595197,1836.6,1836.5,18.14636162]
[1746358305777,8.84595197,1836.6,1836.5,14.5]
[1746358307245,5.44524783,1836.5,1836.3,0.8137]
[1746358307841,5.44524783,1836.5,1836.4,14.5]
[1746358311480,5.44524783,1836.5,1836.1,6.24392453]
[1746358311667,5.44524783,1836.5,1836.2,0.62439245]
[1746358311870,5.44524783,1836.5,1836.3,14.5]
[1746358312985,10.89062959,1836.5,1836.3,14.5]
[1746358313280,5.44543672,1836.4,1836.3,14.5]
[1746358313678,5.44531925,1836.5,1836.3,14.5]
[1746358315783,8.84608442,1836.6,1836.3,16.82393925]
[1746358316184,3.40110824,1836.6,1836.3,16.82393925]
[1746358316489,8.84607538,1836.6,1836.3,16.82393925]
[1746358316978,5.44407647,1836.9,1836.5,5.44513422]
[1746358317278,5.44436341,1836.8,1836.6,0.8115]
[1746358317478,5.44436341,1836.8,1836.6,0.86594265]
[1746358317686,5.44436341,1836.8,1836.7,14.5]
[1746358322607,5.44464495,1836.7,1836.4,0.8115]
[1746358322806,5.44484913,1836.6,1836.4,0.8115]
[1746358323027,5.44484913,1836.6,1836.3,5.15880087]
[1746358323028,5.44514021,1836.5,1836.3,5.15880087]
[1746358323200,5.44514021,1836.5,1836.4,14.5]
[1746358326408,5.55812576,1836.6,1836.4,14.5]
[1746358326615,5.44514021,1836.5,1836.4,14.5]
[1746358328516,5.97307478,1836.6,1836.4,14.5]
[1746358328817,5.44514021,1836.5,1836.4,14.5]
[1746358331119,5.44514021,1836.5,1836.2,0.8115]
[1746358331415,5.44514021,1836.5,1836.2,1.80189522]
[1746358331625,5.44514021,1836.5,1836.3,14.5]
[1746358332216,5.44543672,1836.4,1836.3,14.5]
[1746358334196,5.4453235,1836.5,1836.3,14.5]
[1746358335142,5.97295191,1836.6,1836.3,14.5]
[1746358335303,5.44514195,1836.5,1836.3,14.5]
[1746358335503,5.44514195,1836.5,1836.3,16.6747803]
[1746358337819,5.8598579,1836.6,1836.3,16.6747803]
[1746358338336,11.30497795,1836.6,1836.3,16.6747803]
[1746358338822,5.8598579,1836.6,1836.3,16.6747803]
[1746358339027,0.41490423,1836.6,1836.3,16.6747803]
[1746358339257,1.6800901,1836.9,1836.4,7.91741247]
[1746358339555,2.0837946,1837.1,1836.7,6.24911934]
[1746358339851,3.0,1837.1,1836.8,15.17934779]
[1746358340145,7.12297814,1837.3,1836.8,15.12491193]
[1746358340146,5.44324685,1837.2,1836.8,15.12491193]
[1746358340346,3.0,1837.1,1836.8,15.12491193]
[1746358340653,8.84492842,1837.1,1836.8,15.12491193]
[1746358340805,3.40155836,1837.1,1836.8,15.12491193]
[1746358341243,3.40155836,1837.1,1836.8,20.56903474]
[1746358341550,1.6800901,1837.5,1836.9,2.37152529]
[1746358341705,1.6800901,1837.5,1837.1,5.44333656]
[1746358341706,11.66153737,1837.5,1837.1,5.44333656]
[1746358341907,11.66153737,1837.5,1837.1,5.49776434]
[1746358342232,7.12253737,1837.5,1837.2,14.5]
[1746358343154,5.44253576,1837.4,1837.2,14.5]
[1746358343445,5.85539293,1837.4,1837.2,14.5]
[1746358344156,0.41285717,1837.4,1837.2,14.5]
[1746358344363,7.12245385,1837.5,1837.2,16.7751]
[1746358344869,1.6800901,1837.5,1837.3,5.49716904]
[1746358345086,5.44171043,1837.7,1837.3,5.49716904]
[1746358345242,8.44171043,1837.7,1837.3,5.49716904]
[1746358345540,8.84919057,1837.7,1837.4,0.5497169]
[1746358346869,8.84919057,1837.7,1837.5,14.5]
[1746358352481,3.1131,1837.6,1837.0,0.764]
[1746358352647,3.0,1837.4,1837.1,5.44332783]
[1746358352847,5.44231625,1837.5,1837.2,0.764]
[1746358353178,8.55517432,1837.6,1837.3,14.5]
[1746358353551,13.99730276,1837.6,1837.3,14.5]
[1746358353977,8.55517432,1837.6,1837.3,14.5]
[1746358354169,3.0,1837.6,1837.3,14.5]
[1746358354365,3.0,1837.6,1837.3,22.0134422]
[1746358354571,3.0,1837.6,1837.3,16.57070379]
[1746358354876,5.84930251,1837.7,1837.3,22.01346981]
[1746358355585,0.40748014,1837.7,1837.3,16.57070379]
[1746358355877,5.44241822,1837.5,1837.3,14.5]
[1746358356082,5.44247305,1837.4,1837.3,14.5]
[1746358356381,5.84302183,1837.4,1837.3,14.5]
[1746358357097,0.40054878,1837.4,1837.3,14.5]
[1746358357265,5.44247305,1837.4,1837.3,14.5]
[1746358357593,5.55545026,1837.5,1836.9,0.786]
[1746358357594,5.44285503,1837.3,1836.9,0.786]
[1746358357771,5.44306553,1837.2,1836.9,0.786]
[1746358360195,10.88639925,1837.2,1836.9,0.786]
[1746358361269,5.44338629,1837.1,1836.9,0.786]
[1746358361473,5.44338629,1837.1,1836.7,6.23038353]
[1746358361684,5.44338629,1837.1,1836.8,0.62303835]
[1746358362494,5.44365838,1837.0,1836.8,0.62303835]
[1746358362694,5.44365838,1837.0,1836.7,0.786]
[1746358362996,5.44404879,1836.9,1836.7,0.786]
[1746358363892,5.44380196,1837.0,1836.7,0.786]
[1746358366282,0.1131,1837.1,1836.7,0.786]
[1746358366283,5.44397062,1836.9,1836.7,0.786]
[1746358366704,5.55661684,1837.1,1836.7,0.786]
[1746358366705,5.44389388,1837.0,1836.7,0.786]
[1746358367215,5.44399535,1836.9,1836.7,0.786]
[1746358367434,5.44389388,1837.0,1836.7,0.786]
[1746358368024,5.4434679,1837.1,1836.7,1.41451101]
[1746358368229,5.4434679,1837.1,1836.9,0.8067]
[1746358368536,5.4434679,1837.1,1836.9,15.3067]
[1746358369231,10.1233323,1837.2,1836.9,15.3067]
[1746358369588,4.6800901,1837.2,1836.9,15.3067]
[1746358369801,1.6800901,1837.2,1837.0,1.53067]
[1746358370434,1.6800901,1837.2,1837.0,1.58509939]
[1746358370822,5.44301507,1837.3,1837.0,1.53067]
[1746358371022,5.44314025,1837.2,1837.0,1.53067]
[1746358371547,5.44314025,1837.2,1836.9,0.8067]
[1746358371843,5.44314025,1837.2,1837.0,14.5]
[1746358372425,5.44292306,1837.3,1837.0,14.5]
[1746358373253,5.44310586,1837.2,1837.0,14.5]
[1746358377669,5.44336182,1837.1,1837.0,14.5]
[1746358377871,5.44336182,1837.1,1836.7,0.62851101]
[1746358377872,5.44365813,1837.0,1836.7,0.62851101]
[1746358378044,5.44365813,1837.0,1836.7,1.40331101]
[1746358378249,5.44398842,1836.9,1836.7,0.7748]
[1746358378451,5.44398842,1836.9,1836.8,14.5]
[1746358378653,5.44383521,1837.0,1836.8,14.5]
[1746358381073,0.1131,1836.9,1836.5,3.64636162]
[1746358381291,5.44484373,1836.6,1836.5,3.64636162]
[1746358381784,5.44484373,1836.6,1836.5,14.5]
[1746358383020,5.44470074,1836.7,1836.5,14.5]
[1746358383316,5.44445068,1836.8,1836.6,0.7748]
[1746358383493,13.88895752,1836.8,1836.6,0.7748]
[1746358383694,8.44445068,1836.8,1836.6,0.7748]
[1746358384269,5.44454728,1836.7,1836.6,0.7748]
[1746358385991,5.85303384,1836.7,1836.6,0.7748]
[1746358386389,5.44484373,1836.6,1836.5,16.31463616]
[1746358386593,5.44484373,1836.6,1836.5,14.5]
[1746358387601,5.85325298,1836.7,1836.5,14.5]
[1746358388902,0.40848656,1836.7,1836.5,14.5]
[1746358389106,5.44465634,1836.7,1836.5,14.5]
[1746358389697,8.44440738,1836.8,1836.5,14.5]
[1746358390011,10.88894498,1836.8,1836.5,16.0316]
[1746358390305,5.44455952,1836.7,1836.5,16.0316]
[1746358391204,5.44484373,1836.6,1836.5,16.0316]
[1746358392716,5.44471953,1836.7,1836.5,16.0316]
[1746358399179,5.44544888,1836.4,1836.2,4.45996162]
[1746358399383,5.44573326,1836.3,1836.2,4.45996162]
[1746358399620,5.44573326,1836.3,1836.2,18.14636162]
[1746358400483,5.44561464,1836.4,1836.2,18.14636162]
[1746358400880,10.8913007,1836.4,1836.2,18.14636162]
[1746358401081,5.44573326,1836.3,1836.2,18.14636162]
[1746358402180,10.89134651,1836.4,1836.2,18.14636162]